[Event "II Llinars Open 2022"]
[Site "Llinars del Valles"]
[Date "2022.06.25"]
[Round "1.6"]
[White "Salvans Serra, Arnau"]
[Black "Bellpuig Mencos, Gerard"]
[Result "1-0"]
[ECO "A05"]
[WhiteElo "2227"]
[BlackElo "1697"]
[Annotator "TA"]
[PlyCount "79"]
[EventDate "2022.06.24"]
[EventType "swiss"]
[EventCountry "ESP"]
[SourceTitle "playchess.com"]
[Source "ChessBase"]
[SourceQuality "1"]
[TimeControl "5400+30"]

{[%evp 15,79,0,8,-8,43,62,46,54,46,47,58,61,56,60,52,0,17,11,83,63,116,134,117,61,53,60,76,65,327,331,386,395,395,382,393,383,455,297,470,452,435,422,537,520,612,613,852,787,849,844,904,903,1072,999,2401,2226,1985,1232,29984,29985,29977,29978,29988,29989,29997,29998]} 1. Nf3 {[%emt 0:00:06]} Nf6 {[%emt 0:00:13]} 2. b3 {[%emt 0:00:10]} g6 {[%emt 0:00:15]} 3. g3 {[%emt 0:00:28]} Bg7 {[%emt 0:00:19]} 4. Bb2 {[%emt 0:00:05]} O-O {[%emt 0:00:30]} 5. Bg2 {[%emt 0:00:34]} d5 {[%emt 0:00:48]} 6. c4 {[%emt 0:00:06]} dxc4 {[%emt 0:03:52]} 7. bxc4 {[%emt 0:00:06]} c5 {[%emt 0:00:24]} 8. O-O {[%emt 0:01:29]} Nc6 {[%emt 0:00:19]} 9. Ne5 {[%emt 0:00:45] A05: Réti Opening: 1 Nf3 Nf6.} Nxe5 {[%emt 0:03:40]} (9... Na5 $11) 10. Bxe5 $14 {[%emt 0:00:21]} Ng4 {[%emt 0:00:27]} 11. Bxg7 {[%emt 0:00:15] White is slightly better.} Kxg7 {[%emt 0:00:06] [#]} 12. d3 $146 {[%emt 0:00:35]} ({Predecessor:} 12. Qb3 Rb8 13. a4 Qd4 14. d3 Nxf2 15. Qc3 Ng4+ 16. Qxd4+ cxd4 17. Na3 Ne3 18. Rfb1 Nxg2 19. Kxg2 {0-1 (49) Salinas Herrera,P (2514)-Kopylov,M (2407) Chess.com INT 2020}) 12... Rb8 {[%emt 0:03:14]} 13. Nc3 {[%emt 0:05:57]} h5 {[%emt 0:08:17][%cal Oh5h4]} 14. Qa4 {[%emt 0:07:48]} a6 {[%emt 0:09:27][%cal Oh5h4]} 15. h4 {[%emt 0:12:04]} (15. Qa3 $14) 15... Qd4 {[%emt 0:07:26]} (15... g5 $5 {[%cal Rg5h4]}) 16. Rac1 {[%emt 0:01:45]} e6 {[%emt 0:08:02] [#]} (16... Qe5 $11) 17. Qa3 $1 $16 {[%emt 0:05:49]} f5 {[%emt 0:07:21]} (17... b6 $14) 18. e3 {[%emt 0:04:02]} Qe5 {[%emt 0:08:18]} 19. Na4 {[%emt 0:04:25]} (19. Rfd1 $16) 19... b6 $14 {[%emt 0:00:14]} 20. Rb1 {[%emt 0:00:09]} Qc7 {[%emt 0:02:21][%cal Og6g5]} 21. Rb3 {[%emt 0:01:45] Threatens to win with Rfb1.} Nxe3 $2 {[%emt 0:02:16][%mdl 8192] A mistake that costs the game.} 22. fxe3 {[%emt 0:00:14]} Qxg3 {[%emt 0:00:05]} 23. Qb2+ {[%emt 0:00:38]} Kh7 {[%emt 0:06:01]} 24. Qf2 {[%emt 0:00:21]} Qd6 {[%emt 0:00:25]} 25. d4 {[%emt 0:08:01][%cal Ob3b6] Hoping for Rxb6!} Bd7 {[%emt 0:01:06]} 26. Nb2 {[%emt 0:01:53][%cal Ba4b2,Bb2d3,Bd3e5][%mdl 32]} f4 {[%emt 0:07:19]} (26... Rfd8 $142 27. dxc5 bxc5) 27. dxc5 $18 {[%emt 0:02:05]} Qxc5 {[%emt 0:00:00]} 28. exf4 {[%emt 0:00:08]} Qc7 {[%emt 0:01:10]} 29. Nd3 {[%emt 0:02:47]} b5 {[%emt 0:03:50]} 30. c5 {[%emt 0:01:13]} Bc6 {[%emt 0:02:33]} 31. Ne5 {[%emt 0:00:43]} Bxg2 {[%emt 0:00:37]} 32. Kxg2 {[%emt 0:00:05]} Rbd8 {[%emt 0:01:35]} 33. Rg3 {[%emt 0:02:05]} Rf6 {[%emt 0:03:22]} 34. Qc2 {[%emt 0:00:25][%cal Rg3g6]} Rg8 {[%emt 0:02:20]} 35. Rd1 {[%emt 0:00:31][%cal Bf1d1,Bd1d4,Bd4f4,Bf4f7][%mdl 32]} Rg7 {[%emt 0:01:10] Inhibits Rd7.} 36. Rd4 {[%emt 0:00:31] Strongly threatening c6.} Rxf4 {[%emt 0:01:59]} 37. Rxf4 {[%emt 0:00:36] White mates.} Qxe5 {[%emt 0:00:06] [#]} 38. Rf7 $3 {[%emt 0:01:36][%mdl 512]} Qd5+ {[%emt 0:02:22]} (38... Qxg3+ 39. Kxg3) 39. Kh2 {[%emt 0:00:08]} Qd4 {[%emt 0:01:10]} 40. Qxg6+ {[%emt 0:00:09] Weighted Error Value: White=0.13 (very precise) /Black=0.63} 1-0

[Event "II Llinars Open 2022"]
[Site "Llinars del Valles"]
[Date "2022.06.25"]
[Round "1.7"]
[White "Montes Molina, Ivan"]
[Black "Luna Cortes, Luis"]
[Result "0-1"]
[ECO "B21"]
[WhiteElo "1688"]
[BlackElo "2215"]
[Annotator "TA"]
[PlyCount "74"]
[EventDate "2022.06.24"]
[EventType "swiss"]
[EventCountry "ESP"]
[SourceTitle "playchess.com"]
[Source "ChessBase"]
[SourceQuality "1"]
[TimeControl "5400+30"]

{[%evp 12,74,40,6,25,16,43,11,50,-4,22,19,47,41,70,38,72,76,83,39,39,10,7,0,6,0,70,40,50,38,67,10,9,-17,24,0,5,0,0,0,0,-130,-141,-141,-136,-128,-137,-161,-156,-168,-136,-352,-340,-519,-335,-379,-369,-352,-305,-378,-361,-361,-333,-29998,-29999]} 1. e4 {[%emt 0:00:06]} c5 {[%emt 0:04:47]} 2. d4 {[%emt 0:00:10]} cxd4 {[%emt 0:00:07]} 3. c3 {[%emt 0:00:06]} d3 {[%emt 0:00:11]} 4. Bxd3 {[%emt 0:00:16]} Nc6 {[%emt 0:00:19]} 5. c4 {[%emt 0:00:16]} g6 {[%emt 0:00:10]} 6. Nc3 {[%emt 0:00:21]} Bg7 {[%emt 0:00:07]} 7. Nf3 {[%emt 0:00:12]} d6 {[%emt 0:00:06] B21: Sicilian: 2 f4 and Morra Gambit.} (7... Bxc3+ $5 8. bxc3 Nf6 $14) 8. h3 {[%emt 0:00:11]} Nf6 {[%emt 0:00:07]} 9. O-O {[%emt 0:00:21]} O-O {[%emt 0:00:04] The position is equal.} 10. a3 {[%emt 0:01:28]} (10. Be3 $14) 10... Be6 {[%emt 0:02:36] [#]} 11. Bd2 $146 {[%emt 0:08:08]} ({Predecessor:} 11. Rb1 Nd7 12. Nd5 Nc5 13. b3 Nxd3 14. Qxd3 f5 15. Nf4 fxe4 16. Nxe6 exd3 17. Nxd8 Raxd8 {½-½ (24) Mangone,P-Diaz,M Rochefort 1998}) 11... Na5 {[%emt 0:00:55]} 12. Nd5 {[%emt 0:00:59]} Re8 {[%emt 0:04:22][%cal Ob7b5]} 13. Rc1 {[%emt 0:01:21]} Nd7 {[%emt 0:02:16]} 14. b4 {[%emt 0:03:40]} Nc6 {[%emt 0:00:08]} 15. Qe2 {[%emt 0:03:33]} a5 {[%emt 0:02:18]} 16. b5 {[%emt 0:00:26]} (16. Rfd1 {feels hotter.} axb4 17. axb4 Nde5 18. Nxe5 Nd4 19. Qe3) 16... Nd4 {[%emt 0:00:46]} 17. Nxd4 {[%emt 0:00:55]} Bxd4 {[%emt 0:00:09]} 18. Be3 {[%emt 0:00:33]} Bg7 {[%emt 0:00:41]} (18... Bxe3 $11 19. Nxe3 (19. Qxe3 b6 $11) 19... f6) 19. a4 {[%emt 0:00:57]} Rc8 {[%emt 0:05:35]} 20. f4 {[%emt 0:01:23]} Nc5 {[%emt 0:00:13]} 21. Bxc5 {[%emt 0:14:13]} ({White should try} 21. f5 $14 Bd7 22. Bg5) 21... Rxc5 $11 {[%emt 0:00:43]} 22. Qf3 {[%emt 0:00:45]} Qc8 {[%emt 0:07:10]} 23. g4 {[%emt 0:03:49]} Bd4+ {[%emt 0:08:52]} 24. Kh1 {[%emt 0:00:12]} Bxd5 {[%emt 0:01:38]} 25. exd5 {[%emt 0:00:11]} e6 $1 {[%emt 0:00:59]} 26. f5 {[%emt 0:12:36]} (26. dxe6 $11 Qxe6 27. Rcd1) 26... exf5 $17 {[%emt 0:01:14]} 27. Rce1 {[%emt 0:05:29] Prevents Re3.} Rxe1 {[%emt 0:00:29]} 28. Rxe1 {[%emt 0:00:11][%cal Rg4f5]} fxg4 {[%emt 0:00:56]} 29. hxg4 {[%emt 0:01:59]} Qd8 {[%emt 0:01:50] [#] Inhibits Re7. White must now prevent ...Qh4+.} 30. Kg2 {[%emt 0:02:07]} Rc8 {[%emt 0:05:35]} 31. Qh3 $2 {[%emt 0:10:19] Now White is beyond hope.} (31. Qf4 $17 Be5 32. Qh6) 31... Qg5 $19 {[%emt 0:00:32] Strongly threatening ...f5.} 32. Re4 {[%emt 0:07:53]} (32. Kh1 {keeps fighting.}) 32... Qd2+ {[%emt 0:02:16]} 33. Re2 {[%emt 0:00:24]} Qd1 {[%emt 0:00:46]} 34. Qf3 {[%emt 0:00:58][%cal Oe2e8] Hoping for Re8+!} Rf8 {[%emt 0:01:33] Inhibits Re8.} 35. Bc2 {[%emt 0:01:26]} Qg1+ {[%emt 0:00:27]} 36. Kh3 {[%emt 0:00:08]} Be5 {[%emt 0:00:19][%cal Of7f5]} 37. Rg2 $2 {[%emt 0:02:04] [#]} (37. c5 $19) 37... Qh1+ {[%emt 0:00:05] Weighted Error Value: White=0.64/Black=0.25 (precise)} 0-1

[Event "II Llinars Open 2022"]
[Site "Llinars del Valles"]
[Date "2022.06.25"]
[Round "1.8"]
[White "Prats Safont, Sergi"]
[Black "Torrent San Nicolas, Biel"]
[Result "1-0"]
[ECO "B08"]
[WhiteElo "2206"]
[BlackElo "1603"]
[Annotator "TA"]
[PlyCount "69"]
[EventDate "2022.06.24"]
[EventType "swiss"]
[EventCountry "ESP"]
[SourceTitle "playchess.com"]
[Source "ChessBase"]
[SourceQuality "1"]
[TimeControl "5400+30"]

{[%evp 16,69,40,0,47,26,34,32,38,26,48,39,48,48,23,36,60,37,37,0,29,23,75,83,82,92,136,108,113,104,241,125,141,122,129,145,125,135,881,875,993,998,29991,29966,5685,5477,1979,1064,29989,29990,29996,29997,29997,29998,29998,29999]} 1. d4 {[%emt 0:00:04]} Nf6 {[%emt 0:00:09]} 2. Nf3 {[%emt 0:00:30]} g6 {[%emt 0:00:20]} 3. Nc3 {[%emt 0:01:08]} Bg7 {[%emt 0:00:25]} 4. e4 {[%emt 0:00:19]} d6 {[%emt 0:00:17]} 5. Bc4 {[%emt 0:03:18]} O-O {[%emt 0:02:07]} 6. O-O {[%emt 0:05:36]} a6 {[%emt 0:07:50]} 7. a4 {[%emt 0:01:53]} Nc6 {[%emt 0:03:37]} 8. h3 {[%emt 0:04:07]} e5 {[%emt 0:01:34]} 9. Be3 {[%emt 0:11:17]} Nd7 {[%emt 0:06:32] B08: Pirc Defence: Classical System.} (9... exd4 $11 10. Nxd4 (10. Bxd4 Be6 $11) 10... Qe7) 10. Bg5 {[%emt 0:04:27]} Bf6 {[%emt 0:01:33]} 11. Bxf6 {[%emt 0:07:32]} Nxf6 {[%emt 0:00:07] White is slightly better.} 12. Re1 {[%emt 0:07:39][%cal Bf1e1,Be1e3,Be3f3,Bf3f6][%mdl 32] [#]} Bd7 $146 {[%emt 0:09:38]} ({Predecessor:} 12... Kg7 13. Qd2 Bd7 14. Rad1 h6 15. Nd5 Nxd5 16. exd5 Nxd4 17. Nxd4 exd4 18. Qxd4+ Qf6 {1-0 (55) Spyropoulos,N (2403)-Ledakov,A (2309) Chess.com INT 2020}) 13. Qd2 {[%emt 0:07:21]} Nxd4 {[%emt 0:05:47]} 14. Nxd4 {[%emt 0:00:17]} exd4 {[%emt 0:00:08]} 15. Qxd4 {[%emt 0:00:17]} Re8 {[%emt 0:00:23]} 16. Re3 {[%emt 0:08:21]} Be6 {[%emt 0:03:28]} 17. Rf3 {[%emt 0:08:02]} Bxc4 {[%emt 0:01:24]} 18. Rxf6 {[%emt 0:02:03]} c5 {[%emt 0:01:16]} 19. Qxd6 $16 {[%emt 0:00:22]} Be6 {[%emt 0:03:38]} 20. Qf4 {[%emt 0:02:40] White is more active.} Kg7 {[%emt 0:02:50]} 21. e5 {[%emt 0:01:51] Black must now prevent Rd1.} Qd4 {[%emt 0:02:59]} 22. Qg3 $36 {[%emt 0:10:15][%mdl 2048] White has strong initiative.} Bc8 {[%emt 0:08:52]} (22... Qd2 $16) 23. Qf3 {[%emt 0:03:14]} (23. Re1 $18) 23... Be6 {[%emt 0:02:14] [#]} 24. Re1 {[%emt 0:01:27][%cal Ba1e1,Be1d1,Bd1d7,Bd7b7][%mdl 32]} (24. Qxb7 $6 Qxe5 25. Rf3 Bf5 $14) 24... Qd2 {[%emt 0:03:43][%csl LRc2,LRe1]} 25. Rd1 {[%emt 0:01:50]} Qxc2 {[%emt 0:00:33]} 26. Rd7 {[%emt 0:06:52]} ({But not} 26. Qxb7 Rab8 27. Qxa6 Rxb2 $14) 26... Qb3 $2 {[%emt 0:01:37][%mdl 8192]} (26... Bxd7 $16 27. Rxf7+ Kg8) 27. Rxb7 $18 {[%emt 0:00:13]} Qc4 {[%emt 0:01:16]} 28. b3 {[%emt 0:00:09]} Qd4 {[%emt 0:03:09] [#]} 29. Rxe6 $1 {[%emt 0:01:22][%mdl 512]} Rxe6 {[%emt 0:02:15]} 30. Qxf7+ {[%emt 0:00:05]} Kh6 {[%emt 0:00:12]} 31. Qxe6 {[%emt 0:00:18][%cal Oe6f6] Intending Qf6! and mate.} Qxc3 {[%emt 0:00:25]} 32. Qf6 {[%emt 0:00:42][%cal Rf6h4] White mates.} Qd4 {[%emt 0:02:03]} 33. g4 {[%emt 0:00:50][%cal Rf6h4,Bg2g4,Bg4g5][%mdl 32]} Qd1+ {[%emt 0:02:54]} 34. Kh2 {[%emt 0:00:09][%cal Rf6h4]} Qd8 {[%emt 0:00:43]} 35. g5+ {[%emt 0:00:10] Weighted Error Value: White=0.17 (very precise) /Black=0.71} 1-0

[Event "II Llinars Open 2022"]
[Site "Llinars del Valles"]
[Date "2022.06.26"]
[Round "2.1"]
[White "Narciso Dublan, Marc"]
[Black "Casares Bonals, Ainhoa"]
[Result "1-0"]
[ECO "B13"]
[WhiteElo "2464"]
[BlackElo "1912"]
[Annotator "TA"]
[PlyCount "81"]
[EventDate "2022.06.24"]
[EventType "swiss"]
[EventCountry "ESP"]
[SourceTitle "playchess.com"]
[Source "ChessBase"]
[SourceQuality "1"]
[TimeControl "5400+30"]

{[%evp 9,81,15,27,34,34,29,29,25,59,17,83,87,89,68,85,57,54,54,63,52,81,27,29,29,35,27,27,20,27,0,25,26,29,-25,79,72,106,86,85,52,171,164,278,268,245,194,450,338,476,307,288,243,274,270,261,240,307,327,933,370,385,372,452,446,666,658,660,622,1080,915,29980,29982,29983,5318]} 1. e4 {[%emt 0:00:08]} c6 {[%emt 0:00:10]} 2. d4 {[%emt 0:00:09]} d5 {[%emt 0:00:13]} 3. exd5 {[%emt 0:00:15]} cxd5 {[%emt 0:00:11]} 4. Nf3 {[%emt 0:00:12]} Nf6 {[%emt 0:00:45]} 5. Ne5 {[%emt 0:00:39]} a6 {[%emt 0:01:04]} 6. Bd3 {[%emt 0:01:01] B13: Caro-Kann: Exchange Variation and Panov-Botvinnik Attack.} Nc6 {[%emt 0:01:47]} 7. c3 {[%emt 0:00:33]} g6 {[%emt 0:03:14]} 8. O-O {[%emt 0:01:16] White has an edge.} Bf5 {[%emt 0:05:11] [#]} 9. Bf4 $146 {[%emt 0:09:34]} ({Predecessor:} 9. Re1 Bxd3 10. Qxd3 e6 11. Bg5 Be7 12. Nd2 Nxe5 13. dxe5 Nd7 14. Bxe7 Qxe7 15. c4 {½-½ (52) Terao,J (2255)-Martinez,C (2507) Foz do Iguacu 2018}) 9... Bg7 {[%emt 0:06:33]} (9... Bxd3 $11 10. Nxd3 (10. Qxd3 Rc8 $11) 10... Bg7) 10. Bxf5 {[%emt 0:00:45]} gxf5 {[%emt 0:00:06]} 11. Nd2 {[%emt 0:00:15][%cal Bb1d2,Bd2b3,Bb3c1,Bc1d3][%mdl 32]} e6 {[%emt 0:07:15]} 12. Nb3 {[%emt 0:08:35] White is more active.} Nxe5 {[%emt 0:03:20]} 13. Bxe5 {[%emt 0:00:44]} b6 {[%emt 0:00:29]} 14. Nc1 {[%emt 0:01:15]} Rg8 {[%emt 0:02:18]} 15. Bxf6 {[%emt 0:03:40]} ({Better is} 15. Nd3 $16) 15... Bxf6 $11 {[%emt 0:05:10]} 16. Nd3 {[%emt 0:00:08]} Qc7 {[%emt 0:02:01][%cal Oh7h5]} 17. Re1 {[%emt 0:14:21]} O-O-O {[%emt 0:12:43]} 18. Rc1 {[%emt 0:12:37]} Kb7 {[%emt 0:03:19]} 19. f4 {[%emt 0:03:27]} Be7 {[%emt 0:03:28]} 20. Qf3 {[%emt 0:01:35]} Ka7 {[%emt 0:01:21]} 21. c4 {[%emt 0:04:15]} (21. g3 $142) 21... Qb7 {[%emt 0:05:40] [#]} (21... dxc4 $11 {keeps the balance.} 22. Ne5 b5) 22. c5 $1 $16 {[%emt 0:00:49]} Rc8 {[%emt 0:02:28][%cal Oh7h5]} 23. b4 {[%emt 0:04:45]} Bf6 {[%emt 0:08:08]} 24. Qe3 {[%emt 0:00:59]} Rg6 {[%emt 0:03:10] Black is now going downhill.} (24... bxc5 $14 25. bxc5 Rb8) 25. Re2 {[%emt 0:00:52]} b5 {[%emt 0:02:04]} (25... bxc5 $142 26. bxc5 (26. Rxc5 Be7 $14) (26. dxc5 Rg4 $14) 26... Rb8) 26. Ra1 $18 {[%emt 0:02:01]} Rc6 {[%emt 0:04:11]} 27. a4 {[%emt 0:08:07]} h5 $2 {[%emt 0:03:06]} (27... bxa4 28. Rea2 (28. Rxa4 Qb5 $16) 28... Qb5) 28. Rea2 {[%emt 0:00:39]} h4 {[%emt 0:00:59]} (28... Rg8 {was necessary.} 29. Ne5 Bxe5) 29. Ne5 {[%emt 0:04:53]} Bxe5 {[%emt 0:00:26]} 30. Qxe5 {[%emt 0:00:10]} ({Less strong is} 30. dxe5 bxa4 31. Rxa4 Qb5 $16) 30... bxa4 {[%emt 0:03:59]} 31. Rxa4 {[%emt 0:00:15]} Qb5 {[%emt 0:00:32] Inhibits Qe2.} 32. Qe3 {[%emt 0:04:47] Qd2 is the strong threat. Chess con chili.} h3 {[%emt 0:04:32]} 33. Qxh3 {[%emt 0:03:52]} Qe2 $2 {[%emt 0:01:14]} (33... Qc4 34. Qh4 Rg8 35. Qe7+ Kb8) 34. R4a2 $2 {[%emt 0:01:43]} (34. Ra5 {Strongly threatening b5.} e5 35. b5) 34... Qc4 {[%emt 0:01:06]} 35. Qe3 {[%emt 0:00:21]} Qxb4 {[%emt 0:01:28]} 36. Qd3 {[%emt 0:01:49][%cal Ra2a6]} Qb7 {[%emt 0:01:24]} (36... Qc4 $142 37. Qd2 e5 38. fxe5 Rg4) 37. Rb1 {[%emt 0:00:36]} Qc7 {[%emt 0:00:13]} 38. Rab2 {[%emt 0:03:21] Black must now prevent Qa3.} ({Not} 38. Qb5 Rg8 39. Rba1 Qb7 $18) 38... e5 {[%emt 0:00:41]} 39. fxe5 {[%emt 0:00:42]} f6 {[%emt 0:01:18]} 40. Rb6 {[%emt 0:00:48][%csl Gb6][%cal Rd3a6]} Qc8 {[%emt 0:00:50] [#]} 41. Qxf5 $3 {[%emt 0:01:13][%mdl 512] Weighted Error Value: White=0.29 (precise) /Black=0.65} 1-0

[Event "II Llinars Open 2022"]
[Site "Llinars del Valles"]
[Date "2022.06.26"]
[Round "2.2"]
[White "Jove Albaiges, Guillem"]
[Black "Garcia Ramos, Daniel"]
[Result "0-1"]
[ECO "D35"]
[WhiteElo "1876"]
[BlackElo "2441"]
[Annotator "TA"]
[PlyCount "90"]
[EventDate "2022.06.24"]
[EventType "swiss"]
[EventCountry "ESP"]
[SourceTitle "playchess.com"]
[Source "ChessBase"]
[SourceQuality "1"]
[TimeControl "5400+30"]

{[%evp 23,89,5,21,14,14,3,11,-9,3,-2,-2,-2,-2,-8,0,-12,-17,-32,-21,-21,-21,-30,-30,-42,-41,-52,-55,-41,-14,-44,-26,-170,-127,-283,-285,-419,0,0,0,0,65,66,58,90,83,0,0,0,0,0,0,0,413,399,403,388,400,387,537,500,635,-29985,-29986,-29996,-29997,-29998,-29999,-29999]} 1. d4 {[%emt 0:00:03]} d5 {[%emt 0:12:16]} 2. c4 {[%emt 0:00:13]} e6 {[%emt 0:00:15]} 3. Nc3 {[%emt 0:00:17]} Nf6 {[%emt 0:00:07]} 4. cxd5 {[%emt 0:00:22]} exd5 {[%emt 0:00:06]} 5. Bg5 {[%emt 0:00:29]} Be7 {[%emt 0:00:07]} 6. Nf3 {[%emt 0:00:20]} c6 {[%emt 0:00:52]} 7. e3 {[%emt 0:00:38]} h6 {[%emt 0:01:19]} 8. Bh4 {[%emt 0:00:28]} O-O {[%emt 0:00:49]} 9. Bd3 {[%emt 0:00:58]} Re8 {[%emt 0:01:14]} 10. O-O {[%emt 0:00:26]} Nbd7 {[%emt 0:08:56]} 11. Rc1 {[%emt 0:04:52]} Ne4 {[%emt 0:03:49]} 12. Bxe7 {[%emt 0:02:23]} Qxe7 {[%emt 0:00:06]} 13. Nd2 {[%emt 0:09:30] D35: Queen's Gambit Declined: Exchange Variation.} Ndf6 {[%emt 0:03:09]} 14. Re1 {[%emt 0:04:19] [#]} Bf5 $146 {[%emt 0:25:01][%cal Oe4f2]} ({Predecessor:} 14... Qd6 15. f3 Ng5 16. Nf1 Bd7 17. a3 Re7 18. Qb3 b6 19. Qc2 Rae8 20. Ne2 Rc8 {0-1 (34) Rambo,J (1612)-Evensen,T (2041) Drammen 2010}) 15. Qc2 {[%emt 0:03:39] The position is equal.} Rad8 {[%emt 0:02:30]} 16. f3 {[%emt 0:18:27]} (16. a3 {with more complications.} a6 17. Na4 Qc7 18. Nxe4 Bxe4 19. Nc5) 16... Nxc3 {[%emt 0:01:17]} 17. bxc3 {[%emt 0:02:26]} Bxd3 {[%emt 0:01:21]} 18. Qxd3 {[%emt 0:00:45]} c5 {[%emt 0:04:54][%cal Bc6c5,Bc5c4][%mdl 32]} 19. Qb5 {[%emt 0:16:56]} Rc8 {[%emt 0:04:05] next ...cxd4 is good for Black.} 20. Nb3 {[%emt 0:08:23][%cal Rb3c5]} c4 {[%emt 0:03:14]} 21. Nc5 {[%emt 0:09:00]} b6 {[%emt 0:07:34]} 22. Na6 {[%emt 0:01:00]} Qd6 {[%emt 0:00:07]} 23. a4 {[%emt 0:05:39]} Re6 {[%emt 0:00:38]} 24. Rc2 {[%emt 0:02:25]} Rce8 {[%emt 0:03:39]} 25. Rce2 {[%emt 0:00:37]} Nh5 {[%emt 0:00:55][%cal Bf6h5,Bh5f4,Bf4d3][%mdl 32] ...Nf4! is the strong threat.} 26. e4 {[%emt 0:03:01]} Nf4 {[%emt 0:00:22]} 27. Re3 {[%emt 0:01:33]} (27. e5 $1 $11 {and White is okay.} Qa3 28. Rc2) 27... Nd3 {[%emt 0:01:17]} 28. R1e2 $2 {[%emt 0:00:22]} (28. Rf1 $17) 28... Qa3 $19 {[%emt 0:00:39] ( -> ...Qc1+)} 29. g3 {[%emt 0:00:37]} (29. h3 $142 Qc1+ 30. Kh2) 29... R8e7 $2 {[%emt 0:08:12]} (29... Qxc3 $19 30. Nc7 dxe4 $1 31. Nxe6 Rxe6) 30. Qxd5 $11 {[%emt 0:02:04]} Qxa4 {[%emt 0:01:58] Really sharp!} 31. Nc7 {[%emt 0:00:34][%cal Og1g2]} Qd1+ {[%emt 0:01:23]} (31... Rg6 $11 32. Qd8+ Kh7 33. Qxe7 Qa1+ 34. Kg2 Nf4+ 35. Kf2 Nh3+ 36. Kg2 Nf4+ 37. Kf2 Nh3+ 38. Kg2 Nf4+) 32. Kg2 $14 {[%emt 0:01:20]} Rg6 {[%emt 0:00:59] And now ...Nf4+ would win.} (32... Nf4+ 33. gxf4 Rg6+ 34. Kh3) 33. Qd8+ {[%emt 0:01:36]} Kh7 {[%emt 0:00:05] Threatens to win with ...Nf4+.} 34. Qxe7 {[%emt 0:00:26]} (34. Nd5 $16 Ree6 35. Qc7) 34... Nf4+ $1 $11 {[%emt 0:00:14]} 35. Kf2 {[%emt 0:00:18]} Nh3+ {[%emt 0:02:46]} 36. Kg2 {[%emt 0:00:05]} Nf4+ {[%emt 0:00:05]} 37. Kf2 {[%emt 0:00:06][%cal Bg2f2,Bf2e1,Be1d2][%mdl 32]} Qh1 $2 {[%emt 0:01:31][%mdl 8192] [#]} 38. Qh4 $1 $18 {[%emt 0:00:39]} Qg2+ {[%emt 0:00:50]} 39. Ke1 {[%emt 0:00:13]} Qg1+ {[%emt 0:00:45]} 40. Kd2 {[%emt 0:00:16]} Nxe2 {[%emt 0:00:31]} 41. Rxe2 {[%emt 0:00:42]} b5 {[%emt 0:00:20][%cal Ob5b4]} 42. Nd5 {[%emt 0:00:49][%mdl 8192] [#]} (42. e5 $18) 42... Ra6 $1 {[%emt 0:00:09][%cal Ra6a2] Black mates.} 43. Nb4 {[%emt 0:02:06]} Ra1 {[%emt 0:00:07][%csl Ga1][%cal Rg1c1]} 44. Rg2 {[%emt 0:00:32]} Qe1+ {[%emt 0:00:11]} 45. Kc2 {[%emt 0:00:15]} Qc1# {[%emt 0:00:05] Both players deserved the win here.  Weighted Error Value: White=0.42/Black=0.53} 0-1

[Event "II Llinars Open 2022"]
[Site "Llinars del Valles"]
[Date "2022.06.26"]
[Round "2.3"]
[White "Ayats Llobera, Gerard"]
[Black "Juan Mas, Santiago"]
[Result "1-0"]
[ECO "C40"]
[WhiteElo "2423"]
[BlackElo "1889"]
[Annotator "TA"]
[PlyCount "45"]
[EventDate "2022.06.24"]
[EventType "swiss"]
[EventCountry "ESP"]
[SourceTitle "playchess.com"]
[Source "ChessBase"]
[SourceQuality "1"]
[TimeControl "5400+30"]

{[%evp 9,45,91,92,91,118,77,65,63,96,89,91,89,96,76,135,139,372,356,518,515,500,485,476,481,583,396,400,362,399,381,381,381,381,363,362,362,354,355]} 1. e4 {[%emt 0:01:00]} e5 {[%emt 0:01:52]} 2. Nf3 {[%emt 0:00:00]} d5 {[%emt 0:00:09]} 3. exd5 {[%emt 0:00:00]} Bd6 {[%emt 0:00:05]} 4. d4 {[%emt 0:00:01]} e4 {[%emt 0:00:27]} 5. Ne5 {[%emt 0:00:07]} Nf6 {[%emt 0:00:06]} 6. Bb5+ {[%emt 0:00:06] C40: Latvian and Elephant Gambits.} Nbd7 {[%emt 0:00:24]} 7. Nxd7 {[%emt 0:04:07] 0x0.001b68e83cdbdp-1022s more active pieces.} (7. Bg5 {keeps more tension.} Be7 8. Bxf6 gxf6 9. Nc4) 7... Bxd7 {[%emt 0:00:22]} 8. Bxd7+ {[%emt 0:00:04] White is slightly better.} Qxd7 {[%emt 0:00:13]} 9. c4 {[%emt 0:00:09][%cal Bc2c4,Bc4c5][%mdl 32]} O-O {[%emt 0:01:53]} 10. Nc3 {[%emt 0:00:55] Prevents b5.} Rfe8 {[%emt 0:02:25] [#]} 11. Qe2 $146 {[%emt 0:00:59]} ({Predecessor:} 11. h3 a6 12. Bg5 Qf5 13. Bxf6 Qxf6 14. O-O Qf4 15. g3 Qg5 16. Qg4 Qxg4 17. hxg4 {½-½ (87) Knapik,J (1527)-Kotula,M (1502) Szklarska Poreba 2016}) 11... Ng4 {[%emt 0:07:25]} (11... e3 $142 12. Bxe3 c6) 12. h3 $16 {[%emt 0:01:28]} ({Avoid the trap} 12. Nxe4 $2 Rxe4 $1 {[%mdl 512]} 13. Qxe4 Re8 $19) 12... Nh2 {[%emt 0:03:54] Black cannot hold the game after this.} (12... Nf6 $16 {is a better defense.} 13. O-O h6) 13. Be3 $18 {[%emt 0:02:19]} ({And not} 13. c5 {[#]} Nf3+ $1 14. Kd1 (14. gxf3 $2 exf3 15. Qxe8+ Rxe8+ 16. Kd1 Be7 $19) 14... Nxd4 $15) 13... Qf5 {[%emt 0:06:51]} (13... b6 {keeps fighting.} 14. O-O-O a6) 14. c5 {[%emt 0:01:58]} Nf3+ {[%emt 0:03:37]} 15. gxf3 {[%emt 0:01:51]} exf3 {[%emt 0:00:04]} 16. Qd2 {[%emt 0:00:30]} Rxe3+ {[%emt 0:07:52]} 17. Qxe3 {[%emt 0:04:35]} Bf4 {[%emt 0:02:23] White is winning.} 18. Qe4 {[%emt 0:00:29]} Qxe4+ {[%emt 0:01:27]} 19. Nxe4 {[%emt 0:00:01]} Re8 {[%emt 0:00:11] [#]} 20. O-O $1 {[%emt 0:00:08]} Rxe4 {[%emt 0:00:18]} 21. Rfe1 {[%emt 0:00:04]} Rxe1+ {[%emt 0:03:29]} 22. Rxe1 {[%emt 0:00:04][%cal Re1e8]} Kf8 {[%emt 0:00:14] Against Re8+} 23. Rd1 {[%emt 0:00:31] Weighted Error Value: White=0.17 (very precise) /Black=0.43} 1-0